Cogmind - Beta 17.1 @@@ ROGUE MODE // 2026.09.14 @ 23:16:15 Player: stixxx Result: Destroyed by H-71 Marshal with Heavy Mass Driver Performance ------------- Evolutions (6) 3000 Regions Visited (9) 1800 Robots Destroyed (63) 315 Value Destroyed (1684) 1684 Prototype IDs (3) 60 Alien Tech Used (0) 0 Bonus (521) 521 TOTAL SCORE: 7380 Bonus ------- Follower Combat Kills 21 Entered DSFs 500 Cogmind --------- Core Integrity 0/1150 Matter 179/300 Energy 99/100 System Corruption 7% Temperature Cool (0) Movement Core (50) Location -4/Factory Parts ------- > --- POWER (2) -------- (None) > --- PROPULSION (6) --- (None) > --- UTILITY (5) ------ (None) > --- WEAPON (6) ------- (None) > --- INVENTORY (5) ---- Improved Medium Armor Plating Beam Rifle Advanced Assault Cannon Magnetic Acceleration Cannon Long-range Missile Launcher Peak State ------------ > --- POWER ------------ Light Antimatter Reactor Light Antimatter Reactor > --- PROPULSION ------- Nuclear Pulse Array Impulse Thruster Impulse Thruster Impulse Thruster Impulse Thruster > --- UTILITY ---------- Advanced Visual Processing Unit Energy Filter Hacking Suite > --- WEAPON ----------- Ionic Axe Ionic Axe > --- INVENTORY -------- Improved Medium Armor Plating Beam Rifle Advanced Assault Cannon Magnetic Acceleration Cannon Long-range Missile Launcher [Rating: 80] Favorites ----------- Power Deuterium Engine Engine Deuterium Engine Power Core Light Nuclear Core Reactor Light Antimatter Reactor Propulsion Light Treads Treads Light Treads Leg Aluminum Leg Flight Unit Impulse Thruster Utility Small Storage Unit Device Scrap Suit Storage Small Storage Unit Processor Targeting Computer Hackware Hacking Suite Protection Improved Medium Armor Plating Weapon Light Cannon Energy Gun Beam Rifle Ballistic Gun High-powered Shotgun Ballistic Cannon Light Cannon Launcher Grenade Launcher Special Weapon Remote Datajack Slashing Weapon Ionic Axe Build | -11 -10 -10 -9 -8 -7 -6 -5 -5 -4 ------- Run | Yrd Mat Min Mat Mat Fac Fac Fac DSF Fac Slots Evolved 12 | . . . 2 2 2 2 2 . 2 Power 1 | . . . . . . 1 . . . Propulsion 4 | . . . . 1 1 . 1 . 1 Utility 3 | . . . 2 . . . . . 1 Weapon 4 | . . . . 1 1 1 1 . . Parts Attached 62 | 6 3 . 11 7 10 9 . 3 13 Power 11 | 1 1 . 1 2 1 3 . . 2 Engine 6 | 1 . . 1 1 1 2 . . . Core 3 | . 1 . . 1 . 1 . . . Reactor 2 | . . . . . . . . . 2 Propulsion 18 | 2 . . 4 2 1 2 . 2 5 Treads 5 | . . . 2 2 1 . . . . Leg 5 | 2 . . 2 . . 1 . . . Wheel . | . . . . . . . . . . Hover . | . . . . . . . . . . Flight 8 | . . . . . . 1 . 2 5 Utility 17 | 1 1 . 4 1 6 . . 1 3 Device 3 | . . . 1 . 1 . . . 1 Storage 1 | 1 . . . . . . . . . Processor 2 | . 1 . . . . . . . 1 Hackware 2 | . . . . 1 . . . . 1 Protection 9 | . . . 3 . 5 . . 1 . Artifact . | . . . . . . . . . . Weapon 16 | 2 1 . 2 2 2 4 . . 3 Energy Gun 3 | 1 1 . 1 . . . . . . Energy Cannon . | . . . . . . . . . . Ballistic Gun 4 | 1 . . . 1 . 2 . . . Ballistic Cannon 4 | . . . . 1 2 1 . . . Launcher 1 | . . . 1 . . . . . . Special Weapon 1 | . . . . . . 1 . . . Impact Weapon . | . . . . . . . . . . Slashing Weapon 3 | . . . . . . . . . 3 Piercing Weapon . | . . . . . . . . . . Special Melee Weapon . | . . . . . . . . . . Unidentified Prototypes 1 | . . . . . . . . . 1 Parts Lost 37 | . 1 . 9 . 3 12 . 1 11 Power 6 | . . . 1 . . 2 . 1 2 Propulsion 13 | . . . 2 . 1 3 . . 7 Utility 8 | . . . 2 . 2 3 . . 1 Weapon 10 | . 1 . 4 . . 4 . . 1 Highest Loss Streak 10 | . 1 . 3 . 1 8 . 1 10 To Critical Strikes . | . . . . . . . . . . Average Backups 6 | 2 4 6 6 7 6 7 5 4 4 Power 1 | . 1 1 . . 1 1 . . . Propulsion 1 | 1 2 3 3 1 . . . . . Utility 1 | . . 1 1 3 2 2 1 . . Weapon 2 | . . 1 1 1 2 2 4 3 3 Tool/Special . | . . . . . . . . . . Unused Backups 6 | . . . . 1 2 2 . . 1 Power . | . . . . . . . . . . Propulsion 1 | . . . . 1 . . . . . Utility 3 | . . . . . 2 1 . . . Weapon 2 | . . . . . . 1 . . 1 Tool/Special . | . . . . . . . . . . Average Slot Usage (%) 80 | . 90 100 87 92 94 75 11 18 29 Engine 5 | . 7 . 5 6 6 4 5 4 . Core 3 | . 6 14 5 2 . 2 . . . Treads 12 | . . . 5 21 27 12 . . . Leg 6 | . 28 28 14 . . . . . . Flight 1 | . . . . . . . 5 8 12 Device 1 | . . . 7 . 1 . . . 1 Storage 7 | . 14 14 11 9 7 5 . . . Processor 2 | . 5 14 7 . . . . . 2 Hackware 1 | . . . . 1 6 . . . 1 Protection 11 | . . . 8 25 11 18 . 2 1 Energy Gun 5 | . 13 14 13 11 1 . . . . Ballistic Gun 7 | . 14 14 6 6 7 11 . . . Ballistic Cannon 9 | . . . . 7 21 14 . 1 1 Peak Build Rating 80 | 6 10 11 18 21 29 45 8 35 80 Average Rating 23 | 5 7 10 15 17 24 33 8 22 41 On Entrance 14 | . 6 10 11 14 21 29 8 8 34 Avg Prop Armor Cover (%) . | . . . . . . . . . . Naked Turns 134 | . . . . . . 30 . . 104 Heaviest Build 62 | 11 14 14 37 40 50 62 5 20 39 Greatest Support 80 | 20 20 20 40 60 80 60 6 26 41 Greatest Overweight (x) 19 | 1 . . 5 1 1 19 . . 2 Average Overweight (x) . | . . . . . . . . . . Largest Inventory Capacity 8 | 8 8 8 8 8 8 8 5 5 5 Average Capacity 7 | 7 8 8 8 8 8 7 5 5 5 Most Carried 8 | 3 6 8 8 8 8 8 5 5 5 Average Carried 6 | 2 4 7 6 7 6 7 5 3 4 Final Capacity 8 | 8 8 8 8 8 8 5 5 5 5 Final Carried 8 | 3 6 8 8 8 7 5 5 3 5 Scrap Suit Usage (%) 11 | . . . 70 . . . . . . Parts Cannibalized 5 | . . . 5 . . . . . . Class Distribution -------------------- 42% | Mutant 36% | Tank 16% | Scavenger-Tank 3% | Sprinter Dominant Class ---------------- Mutant | -10/Materials Mutant | -10/Mines Mutant | -9/Materials Tank | -8/Materials Tank | -7/Factory Scavenger-Tank | -6/Factory Mutant | -5/Factory Mutant | -5/DSF Mutant | -4/Factory Resources | -11 -10 -10 -9 -8 -7 -6 -5 -5 -4 ----------- Run | Yrd Mat Min Mat Mat Fac Fac Fac DSF Fac Matter Collected 1290 | 260 40 . 135 130 238 261 . . 226 Remotely . | . . . . . . . . . . Salvage Created 1794 | . 175 . 529 340 264 278 . . 208 Parts 122 | . 10 . 33 28 17 22 . . 12 Haulers Intercepted . | . . . . . . . . . . Recyclers Shooed 2 | . . . . . . . . . 2 Parts Field Recycled . | . . . . . . . . . . Retrieved Matter . | . . . . . . . . . . Parts Self-Destructed . | . . . . . . . . . . Prevented . | . . . . . . . . . . Parts Restored . | . . . . . . . . . . Kills | -11 -10 -10 -9 -8 -7 -6 -5 -5 -4 ------- Run | Yrd Mat Min Mat Mat Fac Fac Fac DSF Fac Combat Hostiles Destroyed 48 | . 4 . 17 10 8 8 . . 1 Melee 4 | . . . . . 1 2 . . 1 Guns 27 | . 2 . 15 6 . 4 . . . Cannons 13 | . . . . 4 7 2 . . . AOE 4 | . 2 . 2 . . . . . . Classes Destroyed 10 | . 1 . 6 . 1 2 . . . Worker 4 | . . . 1 1 1 1 . . . Builder 4 | . . . 1 . . 2 . . 1 Tunneler 1 | . . . . . . 1 . . . Recycler 4 | . . . 1 1 1 . . . 1 Watcher 2 | . . . 1 . . . . . 1 Swarmer 23 | . . . 10 5 3 4 . . 1 Grunt 14 | . 4 . 3 3 2 2 . . . Sentry 7 | . . . 4 2 1 . . . . Hunter 1 | . . . . . . 1 . . . Programmer 3 | . . . . . 2 1 . . . Best Kill Streak 5 | . 2 . 4 5 3 4 . . 1 Combat Bots Only 4 | . 2 . 4 4 3 4 . . 1 Max Kills in Single Turn 2 | . 2 . 2 2 1 2 . . 1 Gunslinging . | . . . . . . . . . . Exploded 2 | . 2 . 1 . . . . . . Melee 1 | . . . . . 1 1 . . 1 Uniques/NPCs Destroyed . | . . . . . . . . . . Combat | -11 -10 -10 -9 -8 -7 -6 -5 -5 -4 -------- Run | Yrd Mat Min Mat Mat Fac Fac Fac DSF Fac Hostile Shots Fired 667 | . 22 . 163 68 91 148 . 15 160 Missed 218 | . 5 . 42 21 28 37 . 9 76 Hits 449 | . 17 . 121 47 63 111 . 6 84 Projectile 449 | . 17 . 121 47 63 111 . 6 84 AOE 1 | . . . . . . . . . 1 Critical Strikes 7 | . . . 1 1 1 3 . 1 . Part Disruptions 1 | . . . . . . 1 . . . Damage Taken 7193 | . 261 . 1348 456 910 2014 . 243 1961 Core 1999 | . 95 . 219 31 48 330 . 52 1224 Absorbed by Shields . | . . . . . . . . . . Regen/Repaired (Parts) 49 | . . . 49 . . . . . . Core Remaining (%) 78 | 100 . 62 45 94 93 61 . 94 . Volleys Fired 125 | . 16 . 52 23 20 13 . . 1 Largest 4 | . 2 . 2 3 4 4 . . 1 Hottest 142 | . 85 . 112 142 125 137 . . 44 Shots Fired 319 | . 31 . 96 66 77 48 . . 1 Gun 210 | . 31 . 93 45 17 24 . . . Cannon 105 | . . . . 21 60 23 . . 1 Launcher 3 | . . . 3 . . . . . . Special 1 | . . . . . . 1 . . . Kinetic 210 | . 16 . 35 34 77 47 . . 1 Thermal 88 | . 1 . 55 32 . . . . . Explosive 3 | . . . 3 . . . . . . Electromagnetic 17 | . 14 . 3 . . . . . . Robot Hit Streak 6 | . 5 . 6 5 5 6 . . . Robot Miss Streak 10 | . 5 . 4 6 10 7 . . 1 Penetration Max . | . . . . . . . . . . Secondary Targets 3 | . 1 . 2 . . . . . . Max Gunslinging Chain 1 | . 1 . 1 . . . . . . Shots Hit Robots 155 | . 15 . 48 28 35 24 . . 5 Core Hits 95 | . 9 . 31 20 17 14 . . 4 Critical Kills 1 | . . . . . . 1 . . . Critical Parts Destroyed . | . . . . . . . . . . Critical Strikes 12 | . . . 6 2 1 3 . . . Burn 7 | . . . 5 2 . . . . . Destroy 1 | . . . . . . 1 . . . Blast 3 | . . . . . 1 2 . . . Corrupt 1 | . . . 1 . . . . . . Melee Attacks 8 | . . . . . . . . . 8 Impact . | . . . . . . . . . . Slashing 8 | . . . . . . . . . 8 Piercing . | . . . . . . . . . . Sneak Attacks 1 | . . . . . . . . . 1 Combat Hostiles . | . . . . . . . . . . Follow-up Attacks 2 | . . . . . . . . . 2 Damage Inflicted 3515 | . 368 3 832 545 737 521 . . 509 Guns 1571 | . 172 . 642 361 187 209 . . . Cannons 944 | . . . . 184 488 272 . . . Explosions 352 | . 196 . 156 . . . . . . Melee 292 | . . . . . . . . . 292 Ramming 356 | . . 3 34 . 62 40 . . 217 Kinetic 1679 | . 66 . 116 341 675 481 . . . Thermal 904 | . 196 . 504 204 . . . . . Explosive 156 | . . . 156 . . . . . . Electromagnetic 128 | . 106 . 22 . . . . . . Impact . | . . . . . . . . . . Slashing 292 | . . . . . . . . . 292 Piercing . | . . . . . . . . . . Highest Corruption 7 | . . . . . 5 1 . . 7 Average Corruption 3 | . . . . . 2 1 . . 4 Corruption Purged . | . . . . . . . . . . Corruption Blocked . | . . . . . . . . . . Effects 12 | . . . . . 5 . . . 7 Message Errors 2 | . . . . . . . . . 2 Matter Fused 4 | . . . . . 2 . . . 2 Heat Flow Errors 2 | . . . . . 2 . . . . Energy Discharges 1 | . . . . . . . . . 1 Data Loss (minor) 3 | . . . . . 1 . . . 2 Overload Shots . | . . . . . . . . . . Overflow Damage 30 | . 23 . . . . . . . 7 Projectiles . | . . . . . . . . . . Explosions 23 | . 23 . . . . . . . . Melee 7 | . . . . . . . . . 7 Knockbacks 12 | . . . . . 5 5 . . 2 Impact 3 | . . . . . 1 . . . 2 Kinetic 9 | . . . . . 4 5 . . . Secondary . | . . . . . . . . . . Self-Inflicted Damage 212 | . 28 . 79 . . . . . 105 Shots 3 | . 1 . 2 . . . . . . Rammed 41 | . . . 4 . 12 7 . . 18 Targets Rammed 50 | . . 1 6 . 13 12 . . 18 Kicked 3 | . . 1 1 . . 1 . . . Crushed 6 | . . . 1 . 1 4 . . . Highest Temperature 503 | . 72 . 441 503 219 284 . . 123 Average Temperature 102 | . 29 . 88 193 55 118 . . 36 Received Heat Transfer 912 | . 132 . 249 108 189 207 . . 27 Effects 7 | . . . 2 5 . . . . . Shutdowns 4 | . . . 2 2 . . . . . Energy Bleed 1 | . . . . 1 . . . . . Damage (major) 2 | . . . . 2 . . . . . Siege Activations . | . . . . . . . . . . Martial Activations . | . . . . . . . . . . Shielding Activations . | . . . . . . . . . . Robots Disrupted . | . . . . . . . . . . Combat Hostiles . | . . . . . . . . . . Robots Corrupted . | . . . . . . . . . . Combat Hostiles . | . . . . . . . . . . Parts Fried . | . . . . . . . . . . Impact Corruptions 1 | . . . . . . . . . 1 Robots Melted . | . . . . . . . . . . Combat Hostiles . | . . . . . . . . . . Parts Melted 7 | . . . 7 . . . . . . Heat Transferred 2394 | . 100 . 1628 666 . . . . . Parts Sabotaged . | . . . . . . . . . . Parts Stolen . | . . . . . . . . . . Parts Stripped . | . . . . . . . . . . Power Chain Reactions . | . . . . . . . . . . Alert | -11 -10 -10 -9 -8 -7 -6 -5 -5 -4 ------- Run | Yrd Mat Min Mat Mat Fac Fac Fac DSF Fac Maximum Alert Level 1 | . . . 1 1 . . . . . Low Security (%) 99 | 100 100 100 96 97 100 100 100 100 100 Level 1 . | . . . 3 2 . . . . . Level 2 . | . . . . . . . . . . Level 3 . | . . . . . . . . . . Level 4 . | . . . . . . . . . . Level 5 . | . . . . . . . . . . High Security . | . . . . . . . . . . Max Security . | . . . . . . . . . . Peak Influence 209 | . 129 26 209 201 131 83 37 25 90 Initial 70 | . . 26 . 56 70 . 32 25 7 Average 50 | . 42 3 109 120 49 14 36 23 20 Influence Increases 1964 | . 169 . 574 305 307 286 5 . 318 Destroy 0b10 Robot/C 1040 | . 80 . 400 200 160 160 . . 40 Destroy 0b10 Robot/NC 75 | . . . 20 10 10 20 . . 15 Destroy Leader 234 | . 20 . 92 40 50 30 . . 2 Allied During Kill 25 | . . . 25 . . . . . . Successful Hack 84 | . 13 . . 24 9 27 5 . 6 Disable Machine 45 | . 30 . 15 . . . . . . Destroy Structure 56 | . 26 . 22 1 3 4 . . . Partial Spotted 15 | . . . . . . . . . 15 Lose Combat Pursuer 390 | . . . . 30 75 45 . . 240 Influence Decreases 1884 | . 100 69 440 284 462 219 35 22 253 Entered New Map 261 | . . 43 . 78 85 . 35 12 8 Time Decay 1263 | . 90 26 290 206 347 179 . . 125 Lost Part 260 | . 10 . 90 . 30 40 . 10 80 Lost Ally 100 | . . . 60 . . . . . 40 Squads Dispatched 13 | . . . 2 1 3 3 . 1 3 Investigation 1 | . . . . . . . . . 1 Extermination 5 | . . . . . 2 2 . . 1 Reinforcement 7 | . . . 2 1 1 1 . 1 1 Assault . | . . . . . . . . . . Garrison . | . . . . . . . . . . Intercept . | . . . . . . . . . . Searches Triggered . | . . . . . . . . . . Construction Impeded . | . . . . . . . . . . Haulers Reinforced . | . . . . . . . . . . Active Scanning Responses . | . . . . . . . . . . Cargo Convoy Interrupts . | . . . . . . . . . . Stealth | -11 -10 -10 -9 -8 -7 -6 -5 -5 -4 --------- Run | Yrd Mat Min Mat Mat Fac Fac Fac DSF Fac Distress Signals 5 | . 1 . 2 . 1 . . . 1 Communications Jammed . | . . . . . . . . . . Distress Signals . | . . . . . . . . . . Times Spotted 118 | . 6 . 29 15 14 18 . 3 33 Peak Tracking Total 12 | . 3 . 6 5 3 8 . 3 12 Tactical Retreats 9 | . . . . 1 2 1 . . 5 Traps | -11 -10 -10 -9 -8 -7 -6 -5 -5 -4 ------- Run | Yrd Mat Min Mat Mat Fac Fac Fac DSF Fac Traps Triggered 7 | . . . . . 1 2 . 3 1 Indirectly . | . . . . . . . . . . Trap Hack Attempts . | . . . . . . . . . . Triggered . | . . . . . . . . . . Disarmed . | . . . . . . . . . . Reprogrammed . | . . . . . . . . . . Reused . | . . . . . . . . . . Traps Extracted . | . . . . . . . . . . Installed . | . . . . . . . . . . Triggered . | . . . . . . . . . . Most Traps Carried 1 | . . 1 . . . . . . . Machines | -11 -10 -10 -9 -8 -7 -6 -5 -5 -4 ---------- Run | Yrd Mat Min Mat Mat Fac Fac Fac DSF Fac Machines Disabled 3 | . 2 . 1 . . . . . . Max in Single Turn 2 | . 2 . 1 . . . . . . Machines Repaired . | . . . . . . . . . . Machines Dismantled . | . . . . . . . . . . Machines Sabotaged . | . . . . . . . . . . Overloaded Fab Kills . | . . . . . . . . . . Hacking | -11 -10 -10 -9 -8 -7 -6 -5 -5 -4 --------- Run | Yrd Mat Min Mat Mat Fac Fac Fac DSF Fac Machines Accessed 15 | . 2 . 3 1 3 4 1 . 1 Terminals 12 | . 2 . 2 . 3 4 1 . . Fabricators 1 | . . . . . . . . . 1 Repair Stations . | . . . . . . . . . . Recycling Units . | . . . . . . . . . . Scanalyzers 2 | . . . 1 1 . . . . . Garrison Access . | . . . . . . . . . . Total Hacks 41 | . 9 . 5 3 8 9 3 . 4 Successful 18 | . 4 . 1 2 5 4 1 . 1 Failed 23 | . 5 . 4 1 3 5 2 . 3 Catastrophic 2 | . . . 1 . 1 . . . . Database Lockouts . | . . . . . . . . . . Manual 4 | . . . . . 4 . . . . Terminals 32 | . 9 . 3 . 8 9 3 . . Fabricators 4 | . . . . . . . . . 4 Repair Stations . | . . . . . . . . . . Recycling Units . | . . . . . . . . . . Scanalyzers 5 | . . . 2 3 . . . . . Garrison Access . | . . . . . . . . . . Terminal Hacks 14 | . 4 . . . 5 4 1 . . Record 5 | . . . . . 3 2 . . . Prototype ID Bank 1 | . 1 . . . . . . . . Open DSF 3 | . . . . . . 2 1 . . Emergency Access Points 1 | . 1 . . . . . . . . Locate Traps 1 | . 1 . . . . . . . . Transport Status 2 | . 1 . . . 1 . . . . Investigation Status 1 | . . . . . 1 . . . . Fabricator Hacks 1 | . . . . . . . . . 1 Build 1 | . . . . . . . . . 1 Repair Station Hacks . | . . . . . . . . . . Recycling Unit Hacks . | . . . . . . . . . . Scanalyzer 3 | . . . 1 2 . . . . . Retrieve Study 3 | . . . 1 2 . . . . . Garrison Access Hacks . | . . . . . . . . . . Unauthorized Hacks . | . . . . . . . . . . Terminals . | . . . . . . . . . . Fabricators . | . . . . . . . . . . Repair Stations . | . . . . . . . . . . Recycling Units . | . . . . . . . . . . Scanalyzers . | . . . . . . . . . . Garrison Access . | . . . . . . . . . . Data Cores Recovered . | . . . . . . . . . . Used . | . . . . . . . . . . Hacking Detections 14 | . 2 . 3 1 3 3 1 . 1 Full Trace Events . | . . . . . . . . . . Feedback Events . | . . . . . . . . . . Feedback Blocked . | . . . . . . . . . . Robot Schematics Acquired . | . . . . . . . . . . Robots Built 3 | . . . . . . . . . 3 Authchips . | . . . . . . . . . . Time 169 | . . . . . . . . . 169 Total Robot Build Rating 18 | . . . . . . . . . 18 Part Schematics Acquired . | . . . . . . . . . . Parts Built . | . . . . . . . . . . Authchips . | . . . . . . . . . . Time . | . . . . . . . . . . Total Part Build Rating . | . . . . . . . . . . Part Studies Acquired 3 | . . . 1 2 . . . . . Parts Repaired . | . . . . . . . . . . Time . | . . . . . . . . . . Parts Recycled . | . . . . . . . . . . Recycled Matter . | . . . . . . . . . . Retrieved Matter . | . . . . . . . . . . Retrieved Components . | . . . . . . . . . . Parts Scanalyzed . | . . . . . . . . . . Part Schematics Acquired . | . . . . . . . . . . Parts Damaged . | . . . . . . . . . . Bothacking | -11 -10 -10 -9 -8 -7 -6 -5 -5 -4 ------------ Run | Yrd Mat Min Mat Mat Fac Fac Fac DSF Fac Used RIF Installer . | . . . . . . . . . . Robots Hacked . | . . . . . . . . . . Non-combat . | . . . . . . . . . . Combat . | . . . . . . . . . . Robot Hacks Applied . | . . . . . . . . . . Relay Couplers Released . | . . . . . . . . . . Fabnet Peak Effective % . | . . . . . . . . . . Robots Rewired . | . . . . . . . . . . Allies Hacked 1 | . . . . . . . . . 1 Hacks Repelled . | . . . . . . . . . . Allies | -11 -10 -10 -9 -8 -7 -6 -5 -5 -4 -------- Run | Yrd Mat Min Mat Mat Fac Fac Fac DSF Fac Total Allies 6 | . . 3 . . . . . . 3 Largest Group 3 | . . 3 3 . . . . . 3 Highest-Rated Group 90 | . . 40 40 . . . . . 90 Highest-Rated Ally 30 | . . 16 16 . . . . . 30 Total Orders . | . . . . . . . . . . Ally Attacks 41 | . . . 36 . . . . . 5 Total Damage 716 | . . . 369 . . . . . 347 Kills 4 | . . . 3 . . . . . 1 Allies Corrupted 2 | . . . . . . . . . 2 Allies Melted . | . . . . . . . . . . Intel | -11 -10 -10 -9 -8 -7 -6 -5 -5 -4 ------- Run | Yrd Mat Min Mat Mat Fac Fac Fac DSF Fac Active Infowar (turns) 178 | . . . . . . . . . 178 Optics 178 | . . . . . . . . . 178 Robot Analysis Total . | . . . . . . . . . . Derelict Logs Recovered 2 | . . 2 . . . . . . . Drone Launches . | . . . . . . . . . . Drone Recoveries . | . . . . . . . . . . Exploration | -11 -10 -10 -9 -8 -7 -6 -5 -5 -4 ------------- Run | Yrd Mat Min Mat Mat Fac Fac Fac DSF Fac Turns Passed 4291 | 113 322 275 697 433 983 993 5 76 394 Spaces Moved 2958 | 83 223 223 376 208 522 527 11 108 677 Core 281 | 3 . . 1 . . 64 . . 213 Treads 1216 | . . . 105 208 522 381 . . . Legs 796 | 80 223 223 270 . . . . . . Wheels . | . . . . . . . . . . Hover . | . . . . . . . . . . Flight 665 | . . . . . . 82 11 108 464 Fastest Speed 28 | 50 120 120 120 160 160 40 40 37 28 Average Speed 121 | 122 120 120 137 161 165 172 40 37 41 Slowest Speed 1000 | 190 120 120 300 240 240 1000 40 40 150 Overloaded Moves . | . . . . . . . . . . Propulsion Burnouts . | . . . . . . . . . . Robots Hopped 3 | . . . . . . . . . 3 Potential Cave-ins . | . . . . . . . . . . Cave-ins Triggered . | . . . . . . . . . . Exploration Rate (%) 29 | 4 39 52 42 20 13 16 1 91 17 Regions Visited 9 Branch Regions 1 Pre-discovered Areas 1 | . . 1 . . . . . . . Known Exits Taken 1 | . . . . . . . 1 . . Unknown Exits Taken 7 | 1 1 1 1 1 1 1 . . . Scrap Searched . | . . . . . . . . . . Spaces Dug . | . . . . . . . . . . Terrain Destroyed 54 | . 28 . 20 . 2 4 . . . Melee . | . . . . . . . . . . Projectile 6 | . . . . . 2 4 . . . AOE 48 | . 28 . 20 . . . . . . Terrain Rammed . | . . . . . . . . . . Walls Destroyed . | . . . . . . . . . . Machines Disabled . | . . . . . . . . . . Actions | -11 -10 -10 -9 -8 -7 -6 -5 -5 -4 --------- Run | Yrd Mat Min Mat Mat Fac Fac Fac DSF Fac Total 3376 | 91 248 231 463 258 584 574 10 142 775 Wait 78 | . 3 3 10 6 . . . . 56 Move 2943 | 82 222 222 375 207 521 526 10 107 671 Hop 3 | . . . . . . . . . 3 Pick Up 33 | 3 3 3 7 6 4 5 . . 2 Fast Attach 36 | 6 2 . 3 3 6 3 . 2 11 Attach 29 | . . . 8 3 7 6 . 2 3 Detach 14 | . . . 2 1 5 3 . . 3 Swap 4 | . 1 . . 1 1 1 . . . Drop 23 | . 1 2 . 8 7 3 . 1 1 Fire 125 | . 16 . 52 23 20 13 . . 1 Melee 6 | . . . . . . . . . 6 Ram 18 | . . . . . . . . . 18 Kick 3 | . . 1 1 . . 1 . . . Crush 29 | . . . 5 . 13 11 . . . Escape Stasis 32 | . . . . . . 2 . 30 . Rewire . | . . . . . . . . . . Trap . | . . . . . . . . . . Miscellaneous . | . . . . . . . . . . Route ------- -11/Scrapyard -10/Materials -10/Mines (discovered 2 exits: *Mat x2) -9/Materials -8/Materials -7/Factory (discovered 2 exits: *Fac x2) -6/Factory -5/Factory -5/DSF -4/Factory History --------- Turn | Location | Event 9 | -11/Scrapyard | Discovered new exit (range 16) 114 | -11/Scrapyard | Entered Materials 304 | -10/Materials | Build established: Mutant 427 | -10/Materials | Discovered new exit (range 7) 436 | -10/Materials | Entered Mines 445 | -10/Mines | Assisted by bots powering up and referring to "LRC-V3" 460 | -10/Mines | Learned Materials emergency access door positions 499 | -10/Mines | Found a hidden stash of uninstalled traps 557 | -10/Mines | Discovered new exit (range 11) 570 | -10/Mines | Learned location of Zion (-7) 615 | -10/Mines | Found a Scrap Suit stashed away for nefarious purposes 618 | -10/Mines | Found Scrap Suit 635 | -10/Mines | Discovered new exit (range 8) 711 | -10/Mines | Entered Materials 711 | -9/Materials | Accompanied by 3 allies 711 | -9/Materials | Evolved 2 slots: Utility x2 868 | -9/Materials | Discovered new exit (range 12) 1126 | -9/Materials | Lost 3 parts (1n2w) 1191 | -9/Materials | Core integrity fell below 50% 1193 | -9/Materials | Lost 3 parts (1n2w) 1408 | -9/Materials | Entered another Materials area 1408 | -8/Materials | Evolved 2 slots: Propulsion x1, Weapon x1 1748 | -8/Materials | Build established: Tank 1754 | -8/Materials | Discovered new exit (range 10) 1841 | -8/Materials | Entered Factory 1841 | -7/Factory | Evolved 2 slots: Propulsion x1, Weapon x1 1887 | -7/Factory | Discovered new exit (range 5) 2560 | -7/Factory | Discovered new exit (range 6) 2824 | -7/Factory | Entered another Factory area 2824 | -6/Factory | Evolved 2 slots: Power x1, Weapon x1 3511 | -6/Factory | Build established: Scavenger-Tank 3751 | -6/Factory | Released all parts (3) 3775 | -6/Factory | Lost 8 parts (1p1n3u3w) 3798 | -6/Factory | Discovered new exit (range 16) 3817 | -6/Factory | Entered another Factory area 3817 | -5/Factory | Evolved 2 slots: Propulsion x1, Weapon x1 3818 | -5/Factory | Identified exit to DSF 3822 | -5/Factory | Entered DSF 3867 | -5/DSF | Additional patrols routed to DSF 3893 | -5/DSF | Discovered new exit (range 14) 3898 | -5/DSF | Entered Factory 3898 | -4/Factory | Evolved 2 slots: Propulsion x1, Utility x1 4119 | -4/Factory | Spotted B-86 Titan 4185 | -4/Factory | Core integrity fell below 50% 4188 | -4/Factory | Released all parts (3) 4217 | -4/Factory | Lost 10 parts (2p6n1u1w) 4227 | -4/Factory | Fabricated B-60 Warrior? 4247 | -4/Factory | Core integrity fell below 20% 4292 | -4/Factory | Destroyed by H-71 Marshal with Heavy Mass Driver Last Messages --------------- U-05 Engineer lays Concrete. K-01 Serf pushes H-77 Assassin. K-01 Serf collects debris. Penetrated by Slug. K-01 Serf collects debris. U-05 Engineer lays Concrete. K-01 Serf collects debris. >> FABRICATOR: Completed B-60 Warrior? R-10 Processor collects Wheel. Penetrated by Slug. Slug penetrates Wall. Penetrated by Slug. S-27 Virus destroyed. System corrupted: Component data lost. U-05 Engineer works on Matter Pump. U-05 Engineer destroyed. Matter Pump disabled. U-05 Engineer works on Matter Pump. Slug penetrates Pressure Siphon. Pressure Siphon disabled. Map ----- +----------------------------------------------------+ | # ## #?????# ???????# #??????? | | # ## #?????# ???????# #??????? | | ######## #?????# ???????# #??????? | | ???????# #####?#????????# ######## | | ???????# ##T ###??????### ## | | ???????######/#### ######## # ## """ | | ???????????# T # # ## """ | | ???????????# ##### ## """ | | ???????????# % # | | ???????????## """ # """ | | ???########## """ """" " + % """ | | ?? ! # """ """" " # """ | | ??""""" # """" "" # | | ??""""" [# """ " | | # """ # """ """" "" " " | | ?? # p""" """" """" """" # | | ??""""" # =%*u """" """" """" ####### | | ??""""" + p[< #?????? | | # """ # """" """" """" #?????? | | # # | %""" """" """" #?????? | | # """"" # *%! %""" """" """" #?????? | | ???"""" # ! #?????? | | ? """ + """ """" #?????? | | # ###" F"# """ """" ? "?????? | | ?############?#""""#% %"" """" !!!Y?????? | | ??????????????###### @ !!!"?????? | | ???????????????????# """" """" !!!#?????? | | ??????????########## """" """" #?????? | | ??????????# # %""" """" #?????? | | ??????????# """" # ?????? | | ?########## """" # ?????? | | ?# # """" # ?????? | | ?# # """" + ?????? | | ?# # """" # ?????? | | ?# """ # """" ??# h###"" #######??????? | | ?# """ # ???# k#??## #????????????? | | ?# """ #] ????# #?????##????????????? | | ?# "" ########## #???????????????????? | | ?# "" + uh%#???????????????????? | | ?# # #???????????????????? | | ?########## """ H#???????????????????? | | ???# """" #???????????????????? | | ???# ##### """ ###?????????????????? | | ???# #???# """" ""#?????????????????? | | ???# #???# """" F"#?????????????????? | | ####+######## """" "#?????????????????? | | # # ""#?????????????????? | | # """ """ # ###?????????????????? | | # """ """ # / ####????????????????? | | # """ """ # ! """#????????????????? | +----------------------------------------------------+ Best States ------------- Heat Dissipation 48 Energy Generation 37 Energy Capacity 275 Matter Stores 300 Matter Capacity 300 Sight Range 20 Terrain Scan Density 10 Armor Coverage 675 Evasion (%) 64 Targeting Accuracy 5 Recoil Reduction 4 Energy Filtering 30 Offensive Hacking 10 Item Schematics ----------------- None Robot Schematics ------------------ None Fabricated ------------ B-60 Warrior | x3 | -4/Factory | Preloaded Repaired ---------- Nothing Studied --------- EM Pulse Gun | -9/Materials | Hacked Hpw. Shotgun | -8/Materials | Hacked Beam Rifle | -8/Materials | Hacked Alien Tech Used ----------------- None Achievements -------------- Serviceable Loadout Well Done Window Shopping Challenges ------------ None Game ------ Seed TerrorFireHarness Manual? 0 Play Time 01:15:39 Cumulative 8.0 hours Start 2026.09.14 @ 22:02:54 End 2026.09.14 @ 23:16:15 Sessions 1 Manual Loads 0 Difficulty Rogue Special Mode None Game No. 18 Rogue 18 Adventurer 0 Explorer 0 Win Type - Total 0 Types 0/0/0/0/0/0/0/0/0/0 Lore% 5 Gallery% 8 Achievement% 10 Wizard Run 0 Options --------- Layout 1 ASCII 0 Keyboard 1 Movement Numpad Keybinds 0 Fullscreen 1 Font 24/Smallcaps Map View 50x35 Zoom Use 0% Tactical HUD 0 Map Filters NONE Filters NONE Steam 1 RUN: 25d1372b-a5cc-4e5b-b285-f9ca87335c12